[Event "Late-Titled-Tuesday-Blitz-September-05-2023"]
[Site "Chess.com"]
[Date "2023.09.05"]
[Round "5"]
[White "PabloZarnicki"]
[Black "Francisco_Ferrari"]
[Result "1/2-1/2"]
[WhiteElo "2535"]
[BlackElo "2159"]
[TimeControl "180+1"]
[EndTime "14:57:23 PDT"]
[Termination "Game drawn by repetition"]

1. e4 {[%clk 0:02:50.5]} 1... c5 {[%clk 0:02:56.9]} 2. Nf3 {[%clk 0:02:50.6]}
2... d6 {[%clk 0:02:55.2]} 3. Bb5+ {[%clk 0:02:48.6]} 3... Bd7 {[%clk
0:02:52.7]} 4. Bxd7+ {[%clk 0:02:48.5]} 4... Nxd7 {[%clk 0:02:53.6]} 5. c4
{[%clk 0:02:48]} 5... e5 {[%clk 0:02:52.3]} 6. Nc3 {[%clk 0:02:48.1]} 6... Ngf6
{[%clk 0:02:52.3]} 7. O-O {[%clk 0:02:47.2]} 7... g6 {[%clk 0:02:52.5]} 8. d3
{[%clk 0:02:45.8]} 8... Bg7 {[%clk 0:02:52.8]} 9. a3 {[%clk 0:02:42.8]} 9... a6
{[%clk 0:02:50.3]} 10. Bg5 {[%clk 0:02:36.7]} 10... h6 {[%clk 0:02:48.1]} 11.
Bxf6 {[%clk 0:02:35.7]} 11... Nxf6 {[%clk 0:02:49]} 12. Nd2 {[%clk 0:02:33.1]}
12... O-O {[%clk 0:02:47.8]} 13. b4 {[%clk 0:02:32.9]} 13... Nd7 {[%clk
0:02:37.7]} 14. Rb1 {[%clk 0:02:30.4]} 14... f5 {[%clk 0:02:32.8]} 15. Nd5
{[%clk 0:02:30.2]} 15... f4 {[%clk 0:02:29.3]} 16. Qg4 {[%clk 0:02:28.6]} 16...
Qe8 {[%clk 0:02:15]} 17. Nc7 {[%clk 0:02:27.2]} 17... Nf6 {[%clk 0:02:05.5]} 18.
Nxe8 {[%clk 0:01:54.4]} 18... Nxg4 {[%clk 0:02:05.7]} 19. Nxd6 {[%clk
0:01:54.8]} 19... cxb4 {[%clk 0:02:03.4]} 20. axb4 {[%clk 0:01:54.6]} 20... Rfd8
{[%clk 0:01:52.9]} 21. c5 {[%clk 0:01:45.3]} 21... a5 {[%clk 0:01:45.9]} 22. b5
{[%clk 0:01:39.7]} 22... Bf8 {[%clk 0:01:41.4]} 23. N2c4 {[%clk 0:01:36.7]}
23... Bxd6 {[%clk 0:01:34.9]} 24. cxd6 {[%clk 0:01:35.5]} 24... a4 {[%clk
0:01:23.1]} 25. Rfc1 {[%clk 0:01:26.4]} 25... Rac8 {[%clk 0:01:08.6]} 26. Ra1
{[%clk 0:01:14.4]} 26... Rc5 {[%clk 0:00:55.4]} 27. Rcb1 {[%clk 0:01:10.6]}
27... Ra8 {[%clk 0:00:42.9]} 28. Nb6 {[%clk 0:01:08.9]} 28... Rd8 {[%clk
0:00:41.1]} 29. d7 {[%clk 0:01:05.4]} 29... Nf6 {[%clk 0:00:37.3]} 30. Rxa4
{[%clk 0:00:56.4]} 30... Nxd7 {[%clk 0:00:33.4]} 31. Nd5 {[%clk 0:00:56.5]}
31... Kf7 {[%clk 0:00:25.4]} 32. Ra7 {[%clk 0:00:56]} 32... Rdc8 {[%clk
0:00:24.6]} 33. h3 {[%clk 0:00:50.8]} 33... Rc1+ {[%clk 0:00:19.2]} 34. Rxc1
{[%clk 0:00:49.8]} 34... Rxc1+ {[%clk 0:00:20.1]} 35. Kh2 {[%clk 0:00:50.5]}
35... Ke6 {[%clk 0:00:19.4]} 36. Rxb7 {[%clk 0:00:49.6]} 36... Nc5 {[%clk
0:00:20]} 37. Rb6+ {[%clk 0:00:47.7]} 37... Kd7 {[%clk 0:00:18.8]} 38. Rc6
{[%clk 0:00:23]} 38... Nxd3 {[%clk 0:00:15.2]} 39. Rxc1 {[%clk 0:00:23.1]} 39...
Nxc1 {[%clk 0:00:16.1]} 40. h4 {[%clk 0:00:19.9]} 40... Nd3 {[%clk 0:00:15.6]}
41. f3 {[%clk 0:00:20.3]} 41... Kd6 {[%clk 0:00:13.6]} 42. g3 {[%clk 0:00:18.1]}
42... g5 {[%clk 0:00:12.4]} 43. hxg5 {[%clk 0:00:17.1]} 43... hxg5 {[%clk
0:00:13.3]} 44. Kh3 {[%clk 0:00:17.2]} 44... Nf2+ {[%clk 0:00:10.7]} 45. Kg2
{[%clk 0:00:16.7]} 45... Nd3 {[%clk 0:00:09.7]} 46. b6 {[%clk 0:00:16.5]} 46...
Kc6 {[%clk 0:00:09.5]} 47. gxf4 {[%clk 0:00:13.7]} 47... Nxf4+ {[%clk
0:00:10.4]} 48. Kg3 {[%clk 0:00:09.8]} 48... Nxd5 {[%clk 0:00:10.2]} 49. exd5+
{[%clk 0:00:10.1]} 49... Kxb6 {[%clk 0:00:10.8]} 50. Kg4 {[%clk 0:00:10.4]}
50... Kc5 {[%clk 0:00:10.9]} 51. Kxg5 {[%clk 0:00:10.7]} 51... Kxd5 {[%clk
0:00:11.3]} 52. Kf5 {[%clk 0:00:10.4]} 52... Kd4 {[%clk 0:00:10.5]} 53. Kg4
{[%clk 0:00:10.5]} 53... Ke3 {[%clk 0:00:10.2]} 54. Kg3 {[%clk 0:00:10.8]} 54...
Ke2 {[%clk 0:00:07.5]} 55. Kg4 {[%clk 0:00:10.4]} 55... Ke3 {[%clk 0:00:07.8]}
56. Kg3 {[%clk 0:00:10.8]} 56... Ke2 {[%clk 0:00:08.2]} 57. Kg2 {[%clk
0:00:11.3]} 57... Ke3 {[%clk 0:00:08.5]} 58. Kg3 {[%clk 0:00:11.9]} 1/2-1/2

[Event "Late-Titled-Tuesday-Blitz-September-05-2023"]
[Site "Chess.com"]
[Date "2023.09.05"]
[Round "5"]
[White "KrokerGuy"]
[Black "PapaieDudu"]
[Result "1-0"]
[WhiteElo "2490"]
[BlackElo "2294"]
[TimeControl "180+1"]
[EndTime "14:57:23 PDT"]
[Termination "KrokerGuy won by checkmate"]

1. e4 {[%clk 0:03:00.2]} 1... c5 {[%clk 0:02:55.6]} 2. Nf3 {[%clk 0:03:00.1]}
2... d6 {[%clk 0:02:55.3]} 3. d4 {[%clk 0:03:00.7]} 3... cxd4 {[%clk 0:02:55.3]}
4. Nxd4 {[%clk 0:03:01.6]} 4... Nf6 {[%clk 0:02:55.8]} 5. Nc3 {[%clk 0:03:02.3]}
5... a6 {[%clk 0:02:56.3]} 6. Bg5 {[%clk 0:03:03]} 6... e6 {[%clk 0:02:56.8]} 7.
f4 {[%clk 0:03:03.4]} 7... Nbd7 {[%clk 0:02:55.7]} 8. Qe2 {[%clk 0:03:03.4]}
8... Qc7 {[%clk 0:02:48.4]} 9. O-O-O {[%clk 0:03:02.3]} 9... b5 {[%clk
0:02:47.7]} 10. a3 {[%clk 0:03:02.6]} 10... Bb7 {[%clk 0:02:47.4]} 11. g4 {[%clk
0:03:01.9]} 11... Rc8 {[%clk 0:02:39.9]} 12. Kb1 {[%clk 0:02:53.6]} 12... Be7
{[%clk 0:02:35.1]} 13. Rg1 {[%clk 0:02:41.3]} 13... h6 {[%clk 0:02:12]} 14. Bh4
{[%clk 0:02:39.6]} 14... d5 {[%clk 0:01:48.2]} 15. exd5 {[%clk 0:02:24.9]} 15...
Nxd5 {[%clk 0:01:47.3]} 16. Nxd5 {[%clk 0:02:22.7]} 16... Bxd5 {[%clk
0:01:46.7]} 17. Bxe7 {[%clk 0:02:12.7]} 17... Kxe7 {[%clk 0:01:43.9]} 18. Nxb5
{[%clk 0:02:13.3]} 18... Qc5 {[%clk 0:01:13.1]} 19. Nd4 {[%clk 0:01:37.7]} 19...
Rb8 {[%clk 0:01:05.1]} 20. Rg3 {[%clk 0:01:36.3]} 20... Nb6 {[%clk 0:00:50.6]}
21. Nb3 {[%clk 0:01:28.9]} 21... Qc7 {[%clk 0:00:37.3]} 22. f5 {[%clk
0:01:16.4]} 22... Rhc8 {[%clk 0:00:36.5]} 23. Rc3 {[%clk 0:01:05.4]} 23... Qd6
{[%clk 0:00:26.4]} 24. Rxc8 {[%clk 0:01:02.8]} 24... Rxc8 {[%clk 0:00:20.9]} 25.
fxe6 {[%clk 0:00:41.7]} 25... fxe6 {[%clk 0:00:20.6]} 26. h4 {[%clk 0:00:24.3]}
26... Nc4 {[%clk 0:00:11.5]} 27. g5 {[%clk 0:00:19.3]} 27... hxg5 {[%clk
0:00:07.8]} 28. hxg5 {[%clk 0:00:20.2]} 28... Kf8 {[%clk 0:00:04]} 29. Bg2
{[%clk 0:00:18.8]} 29... Qc6 {[%clk 0:00:01.5]} 30. Bxd5 {[%clk 0:00:19.1]}
30... exd5 {[%clk 0:00:02.4]} 31. Qf3+ {[%clk 0:00:19]} 31... Kg8 {[%clk
0:00:02.6]} 32. Qxd5+ {[%clk 0:00:19.6]} 32... Qxd5 {[%clk 0:00:03.2]} 33. Rxd5
{[%clk 0:00:20.5]} 33... Ne3 {[%clk 0:00:03.6]} 34. Rc5 {[%clk 0:00:17.7]} 34...
Rd8 {[%clk 0:00:04.2]} 35. Rc6 {[%clk 0:00:16.7]} 35... Rd1+ {[%clk 0:00:03.8]}
36. Ka2 {[%clk 0:00:17.5]} 36... a5 {[%clk 0:00:02.4]} 37. Nxa5 {[%clk
0:00:17.6]} 37... Nd5 {[%clk 0:00:02]} 38. b4 {[%clk 0:00:14.3]} 38... Rd2
{[%clk 0:00:01.9]} 39. Kb2 {[%clk 0:00:14]} 39... Rg2 {[%clk 0:00:02.1]} 40. g6
{[%clk 0:00:12]} 40... Ne7 {[%clk 0:00:02.6]} 41. Rc7 {[%clk 0:00:06]} 41...
Nxg6 {[%clk 0:00:02.4]} 42. b5 {[%clk 0:00:06.7]} 42... Ne5 {[%clk 0:00:02.2]}
43. b6 {[%clk 0:00:07.4]} 43... Nd3+ {[%clk 0:00:01.9]} 44. Kc3 {[%clk
0:00:07.2]} 44... Ne5 {[%clk 0:00:02.2]} 45. b7 {[%clk 0:00:07.1]} 45... Rg3+
{[%clk 0:00:01.8]} 46. Kd4 {[%clk 0:00:06.5]} 46... Nf3+ {[%clk 0:00:01.6]} 47.
Ke4 {[%clk 0:00:05.8]} 47... Ng5+ {[%clk 0:00:02.2]} 48. Kf4 {[%clk 0:00:06.4]}
48... Ne6+ {[%clk 0:00:02.4]} 49. Kxg3 {[%clk 0:00:07.1]} 49... Nxc7 {[%clk
0:00:02.5]} 50. b8=Q+ {[%clk 0:00:07.7]} 50... Ne8 {[%clk 0:00:02.6]} 51. Qxe8+
{[%clk 0:00:08.1]} 51... Kh7 {[%clk 0:00:03.3]} 52. Kg4 {[%clk 0:00:07]} 52...
Kh6 {[%clk 0:00:03.4]} 53. Qh5# {[%clk 0:00:06.6]} 1-0

[Event "Late-Titled-Tuesday-Blitz-September-05-2023"]
[Site "Chess.com"]
[Date "2023.09.05"]
[Round "5"]
[White "Aygehovit1992"]
[Black "JacksterThePro"]
[Result "1-0"]
[WhiteElo "2706"]
[BlackElo "2434"]
[TimeControl "180+1"]
[EndTime "14:57:28 PDT"]
[Termination "Aygehovit1992 won on time"]

1. e4 {[%clk 0:03:00.9]} 1... c6 {[%clk 0:02:56.1]} 2. Nc3 {[%clk 0:03:00.6]}
2... d5 {[%clk 0:02:57]} 3. Nf3 {[%clk 0:03:01.2]} 3... Bg4 {[%clk 0:02:55.7]}
4. h3 {[%clk 0:03:01.1]} 4... Bxf3 {[%clk 0:02:55.5]} 5. Qxf3 {[%clk 0:03:02]}
5... Nf6 {[%clk 0:02:53.7]} 6. g3 {[%clk 0:02:57.2]} 6... e6 {[%clk 0:02:53.4]}
7. Bg2 {[%clk 0:02:55.1]} 7... Bb4 {[%clk 0:02:53.3]} 8. O-O {[%clk 0:02:51.9]}
8... O-O {[%clk 0:02:51.6]} 9. b3 {[%clk 0:02:44.9]} 9... Nbd7 {[%clk
0:02:39.8]} 10. Bb2 {[%clk 0:02:44.1]} 10... Bxc3 {[%clk 0:02:18.6]} 11. Qxc3
{[%clk 0:02:43.1]} 11... dxe4 {[%clk 0:02:12.9]} 12. Bxe4 {[%clk 0:02:41.9]}
12... Qb6 {[%clk 0:02:07.2]} 13. Rae1 {[%clk 0:02:39.1]} 13... Qc5 {[%clk
0:02:04]} 14. Qxc5 {[%clk 0:02:37.9]} 14... Nxc5 {[%clk 0:02:04.6]} 15. Bg2
{[%clk 0:02:37]} 15... Rfd8 {[%clk 0:02:04]} 16. d4 {[%clk 0:02:30.6]} 16...
Ncd7 {[%clk 0:02:03.9]} 17. f4 {[%clk 0:02:28.3]} 17... g6 {[%clk 0:01:59.9]}
18. g4 {[%clk 0:02:28.3]} 18... h5 {[%clk 0:01:57.7]} 19. f5 {[%clk 0:02:27]}
19... exf5 {[%clk 0:01:51.7]} 20. gxf5 {[%clk 0:02:27.9]} 20... g5 {[%clk
0:01:51.8]} 21. c4 {[%clk 0:02:27.9]} 21... Re8 {[%clk 0:01:49]} 22. Bc1 {[%clk
0:02:25]} 22... g4 {[%clk 0:01:45.7]} 23. hxg4 {[%clk 0:02:19.8]} 23... Nxg4
{[%clk 0:01:44.1]} 24. Bf3 {[%clk 0:02:17.3]} 24... Kg7 {[%clk 0:01:37.3]} 25.
d5 {[%clk 0:02:04.2]} 25... Nde5 {[%clk 0:01:22.8]} 26. Bb2 {[%clk 0:02:01.8]}
26... f6 {[%clk 0:01:17.1]} 27. Bg2 {[%clk 0:01:46.5]} 27... Nd3 {[%clk
0:01:07.9]} 28. Rxe8 {[%clk 0:01:44.8]} 28... Rxe8 {[%clk 0:01:08.8]} 29. Bd4
{[%clk 0:01:45]} 29... c5 {[%clk 0:01:05.2]} 30. Bc3 {[%clk 0:01:42.6]} 30...
Re2 {[%clk 0:01:03.7]} 31. Bf3 {[%clk 0:01:42.6]} 31... Rxa2 {[%clk 0:01:02.1]}
32. d6 {[%clk 0:01:36]} 32... Ra6 {[%clk 0:00:35.4]} 33. Ra1 {[%clk 0:01:27.6]}
33... Rxd6 {[%clk 0:00:29.1]} 34. Rxa7 {[%clk 0:01:27.9]} 34... Nde5 {[%clk
0:00:21]} 35. Rxb7+ {[%clk 0:01:28.4]} 35... Kh6 {[%clk 0:00:21]} 36. Bd5 {[%clk
0:01:28.5]} 36... Kg5 {[%clk 0:00:19.8]} 37. b4 {[%clk 0:01:27.6]} 37... cxb4
{[%clk 0:00:19.2]} 38. Bxb4 {[%clk 0:01:28.5]} 38... Ra6 {[%clk 0:00:19]} 39.
Bd2+ {[%clk 0:01:09.1]} 39... Kxf5 {[%clk 0:00:16]} 40. Rb1 {[%clk 0:01:10]}
40... Ra2 {[%clk 0:00:13]} 41. Rf1+ {[%clk 0:01:08.4]} 41... Kg6 {[%clk
0:00:13.5]} 42. Bf4 {[%clk 0:01:05]} 42... Re2 {[%clk 0:00:09.6]} 43. c5 {[%clk
0:01:01.8]} 43... Nd3 {[%clk 0:00:05.6]} 44. c6 {[%clk 0:00:57.2]} 44... Nxf4
{[%clk 0:00:04.8]} 45. Rxf4 {[%clk 0:00:55.2]} 45... Re1+ {[%clk 0:00:02.2]} 46.
Kg2 {[%clk 0:00:55.1]} 46... Ne3+ {[%clk 0:00:01.6]} 47. Kf2 {[%clk 0:00:55.6]}
47... Nxd5 {[%clk 0:00:02.1]} 48. Kxe1 {[%clk 0:00:54.8]} 48... Nxf4 {[%clk
0:00:01.6]} 49. c7 {[%clk 0:00:55.2]} 49... Nd3+ {[%clk 0:00:01.2]} 50. Kf1
{[%clk 0:00:55.4]} 50... Ne5 {[%clk 0:00:01.2]} 51. c8=Q {[%clk 0:00:56.3]}
51... Kg5 {[%clk 0:00:01.3]} 52. Qg8+ {[%clk 0:00:55.8]} 52... Kf4 {[%clk
0:00:01.7]} 53. Qh8 {[%clk 0:00:55.5]} 53... Ng4 {[%clk 0:00:02.6]} 54. Qxh5
{[%clk 0:00:54.9]} 54... Ne3+ {[%clk 0:00:03.5]} 55. Ke2 {[%clk 0:00:54.7]}
55... Nf5 {[%clk 0:00:03.7]} 56. Qf3+ {[%clk 0:00:54.6]} 56... Ke5 {[%clk
0:00:03.7]} 57. Qa8 {[%clk 0:00:55.5]} 57... Nd4+ {[%clk 0:00:03.8]} 58. Ke3
{[%clk 0:00:55.6]} 58... Nf5+ {[%clk 0:00:04.3]} 59. Kd3 {[%clk 0:00:56.2]}
59... Nd6 {[%clk 0:00:03.9]} 60. Qb8 {[%clk 0:00:55.4]} 60... Ke6 {[%clk
0:00:03.5]} 61. Kd4 {[%clk 0:00:55.1]} 61... Nf5+ {[%clk 0:00:03.4]} 62. Kc5
{[%clk 0:00:55.5]} 62... Ne7 {[%clk 0:00:03]} 63. Qd6+ {[%clk 0:00:55.1]} 63...
Kf7 {[%clk 0:00:03]} 64. Qd7 {[%clk 0:00:54.9]} 64... Kf8 {[%clk 0:00:02.5]} 65.
Kd6 {[%clk 0:00:55]} 65... Ng6 {[%clk 0:00:01.9]} 66. Ke6 {[%clk 0:00:54.5]}
66... Nf4+ {[%clk 0:00:01.1]} 67. Kxf6 {[%clk 0:00:53.9]} 67... Nh5+ {[%clk
0:00:02]} 68. Kg6 {[%clk 0:00:53]} 68... Nf4+ {[%clk 0:00:02.5]} 69. Kf5 {[%clk
0:00:53.1]} 69... Nh5 {[%clk 0:00:02.3]} 70. Qd6+ {[%clk 0:00:44.7]} 70... Kg8
{[%clk 0:00:01.3]} 71. Qg6+ {[%clk 0:00:44.6]} 71... Ng7+ {[%clk 0:00:01.7]} 72.
Kf6 {[%clk 0:00:44.6]} 1-0

[Event "Late-Titled-Tuesday-Blitz-September-05-2023"]
[Site "Chess.com"]
[Date "2023.09.05"]
[Round "5"]
[White "SilverCityIndigo"]
[Black "dosto07"]
[Result "0-1"]
[WhiteElo "2307"]
[BlackElo "2508"]
[TimeControl "180+1"]
[EndTime "14:57:28 PDT"]
[Termination "dosto07 won by checkmate"]

1. d4 {[%clk 0:03:00.9]} 1... Nf6 {[%clk 0:02:54.3]} 2. c4 {[%clk 0:03:01.1]}
2... e6 {[%clk 0:02:54.4]} 3. Nc3 {[%clk 0:02:59.5]} 3... Bb4 {[%clk 0:02:54.1]}
4. e3 {[%clk 0:02:59.4]} 4... O-O {[%clk 0:02:51.9]} 5. Bd3 {[%clk 0:02:59.6]}
5... c5 {[%clk 0:02:51.5]} 6. Ne2 {[%clk 0:02:59.2]} 6... d5 {[%clk 0:02:49.9]}
7. O-O {[%clk 0:02:57.9]} 7... Nc6 {[%clk 0:02:49.5]} 8. cxd5 {[%clk 0:02:37.8]}
8... Nxd5 {[%clk 0:02:46.2]} 9. a3 {[%clk 0:02:28.5]} 9... Ba5 {[%clk
0:02:38.7]} 10. Qc2 {[%clk 0:02:24]} 10... Nxc3 {[%clk 0:02:35.4]} 11. Bxh7+
{[%clk 0:02:21]} 11... Kh8 {[%clk 0:02:35.1]} 12. bxc3 {[%clk 0:02:21.4]} 12...
g6 {[%clk 0:02:32.1]} 13. Bxg6 {[%clk 0:02:21.9]} 13... fxg6 {[%clk 0:02:31.8]}
14. Qxg6 {[%clk 0:02:22.6]} 14... Qf6 {[%clk 0:02:25.4]} 15. Qh5+ {[%clk
0:02:22.4]} 15... Kg8 {[%clk 0:02:23.9]} 16. Qxc5 {[%clk 0:02:20.3]} 16... Bb6
{[%clk 0:02:22.8]} 17. Qh5 {[%clk 0:02:20.1]} 17... Bd7 {[%clk 0:02:18.7]} 18.
e4 {[%clk 0:02:18.3]} 18... Be8 {[%clk 0:02:14.7]} 19. Qg4+ {[%clk 0:02:15.8]}
19... Qg6 {[%clk 0:02:14.7]} 20. Qxg6+ {[%clk 0:02:11.5]} 20... Bxg6 {[%clk
0:02:14.6]} 21. Ng3 {[%clk 0:02:03.1]} 21... Rac8 {[%clk 0:02:11.3]} 22. Be3
{[%clk 0:02:00.1]} 22... Na5 {[%clk 0:02:09.7]} 23. Rac1 {[%clk 0:01:53.3]}
23... Nc4 {[%clk 0:02:08.4]} 24. Bh6 {[%clk 0:01:53.5]} 24... Rf7 {[%clk
0:01:59.3]} 25. h4 {[%clk 0:01:49.8]} 25... Nxa3 {[%clk 0:01:57.3]} 26. h5
{[%clk 0:01:45.6]} 26... Bh7 {[%clk 0:01:57.5]} 27. f4 {[%clk 0:01:23.9]} 27...
Nb5 {[%clk 0:01:50]} 28. Kh2 {[%clk 0:01:13]} 28... Rxc3 {[%clk 0:01:39.3]} 29.
Rxc3 {[%clk 0:01:13]} 29... Nxc3 {[%clk 0:01:39.5]} 30. Rf3 {[%clk 0:00:39.6]}
30... Nxe4 {[%clk 0:01:33.3]} 31. Ne2 {[%clk 0:00:27.1]} 31... Nf6 {[%clk
0:01:26.6]} 32. Rg3+ {[%clk 0:00:22.6]} 32... Kh8 {[%clk 0:01:25]} 33. Rg5
{[%clk 0:00:19.5]} 33... Bf5 {[%clk 0:01:19.7]} 34. d5 {[%clk 0:00:10.6]} 34...
Ng4+ {[%clk 0:01:15.3]} 35. Kg3 {[%clk 0:00:03.3]} 35... Nxh6 {[%clk 0:01:15.4]}
36. dxe6 {[%clk 0:00:03.5]} 36... Bxe6 {[%clk 0:01:14.5]} 37. Rg6 {[%clk
0:00:04.2]} 37... Nf5+ {[%clk 0:01:14.1]} 38. Kf3 {[%clk 0:00:04.3]} 38... Bd5+
{[%clk 0:01:12.8]} 39. Kg4 {[%clk 0:00:03.7]} 39... Ne7 {[%clk 0:01:09.9]} 40.
Ng3 {[%clk 0:00:03.3]} 40... Nxg6 {[%clk 0:01:08.5]} 41. hxg6 {[%clk 0:00:04.2]}
41... Rc7 {[%clk 0:01:04.6]} 42. f5 {[%clk 0:00:04.2]} 42... Bd4 {[%clk
0:01:03.7]} 43. Nh5 {[%clk 0:00:04.2]} 43... b5 {[%clk 0:01:01.7]} 44. Kg5
{[%clk 0:00:04.6]} 44... Be4 {[%clk 0:00:56.8]} 45. g4 {[%clk 0:00:04.9]} 45...
b4 {[%clk 0:00:49.7]} 46. Kh6 {[%clk 0:00:03.6]} 46... Be3+ {[%clk 0:00:46.9]}
47. g5 {[%clk 0:00:04]} 47... Bxf5 {[%clk 0:00:45.6]} 48. g7+ {[%clk 0:00:03.2]}
48... Rxg7 {[%clk 0:00:43.2]} 49. Nxg7 {[%clk 0:00:04.1]} 49... Bd3 {[%clk
0:00:39.9]} 50. Ne6 {[%clk 0:00:04.2]} 50... b3 {[%clk 0:00:38]} 51. Nf4 {[%clk
0:00:01.5]} 51... Bxf4 {[%clk 0:00:37]} 52. Kh5 {[%clk 0:00:02]} 52... Bxg5
{[%clk 0:00:36.6]} 53. Kxg5 {[%clk 0:00:02.9]} 53... b2 {[%clk 0:00:36.6]} 54.
Kf6 {[%clk 0:00:03.8]} 54... b1=Q {[%clk 0:00:36.8]} 55. Ke7 {[%clk 0:00:04.7]}
55... a5 {[%clk 0:00:36.3]} 56. Kf6 {[%clk 0:00:05.6]} 56... a4 {[%clk
0:00:36.6]} 57. Ke5 {[%clk 0:00:06]} 57... a3 {[%clk 0:00:36.9]} 58. Kd4 {[%clk
0:00:06.9]} 58... Qc2 {[%clk 0:00:36.8]} 59. Ke3 {[%clk 0:00:07.8]} 59... Kg8
{[%clk 0:00:36.7]} 60. Kd4 {[%clk 0:00:08.7]} 60... Kh7 {[%clk 0:00:36.8]} 61.
Ke5 {[%clk 0:00:09.6]} 61... Kg6 {[%clk 0:00:36.9]} 62. Kf4 {[%clk 0:00:10.5]}
62... Kh5 {[%clk 0:00:37]} 63. Ke3 {[%clk 0:00:11.4]} 63... Qc4 {[%clk
0:00:36.4]} 64. Kd2 {[%clk 0:00:11.6]} 64... Be4 {[%clk 0:00:36.3]} 65. Ke3
{[%clk 0:00:12.5]} 65... Kg5 {[%clk 0:00:35.4]} 66. Kf2 {[%clk 0:00:13.4]} 66...
Qd3 {[%clk 0:00:34.8]} 67. Ke1 {[%clk 0:00:09.7]} 67... Qc2 {[%clk 0:00:34.2]}
68. Kf1 {[%clk 0:00:05.7]} 68... a2 {[%clk 0:00:33.2]} 69. Kg1 {[%clk
0:00:05.8]} 69... Kf6 {[%clk 0:00:33.2]} 70. Kf1 {[%clk 0:00:05.7]} 70... Ke5
{[%clk 0:00:33.5]} 71. Ke1 {[%clk 0:00:06.6]} 71... Kf4 {[%clk 0:00:33.1]} 72.
Kf1 {[%clk 0:00:07.5]} 72... Kg3 {[%clk 0:00:32.5]} 73. Kg1 {[%clk 0:00:08.4]}
73... Qf2# {[%clk 0:00:29.2]} 0-1

[Event "Late-Titled-Tuesday-Blitz-September-05-2023"]
[Site "Chess.com"]
[Date "2023.09.05"]
[Round "5"]
[White "cassoulet"]
[Black "SalihEke"]
[Result "0-1"]
[WhiteElo "2732"]
[BlackElo "2507"]
[TimeControl "180+1"]
[EndTime "14:57:29 PDT"]
[Termination "SalihEke won by checkmate"]

1. d4 {[%clk 0:02:48.7]} 1... d5 {[%clk 0:02:59]} 2. Nf3 {[%clk 0:02:47.6]} 2...
Nf6 {[%clk 0:02:58.8]} 3. Bf4 {[%clk 0:02:45.2]} 3... c5 {[%clk 0:02:57]} 4. e3
{[%clk 0:02:45]} 4... Nc6 {[%clk 0:02:57.3]} 5. c3 {[%clk 0:02:44.9]} 5... Qb6
{[%clk 0:02:57.3]} 6. Qc1 {[%clk 0:02:43.4]} 6... Bf5 {[%clk 0:02:53.9]} 7. Nbd2
{[%clk 0:02:42.9]} 7... e6 {[%clk 0:02:54.2]} 8. h3 {[%clk 0:02:40.6]} 8... h6
{[%clk 0:02:54]} 9. Be2 {[%clk 0:02:39.8]} 9... Be7 {[%clk 0:02:54.6]} 10. O-O
{[%clk 0:02:39.6]} 10... O-O {[%clk 0:02:55.2]} 11. Re1 {[%clk 0:02:32.4]} 11...
c4 {[%clk 0:02:23.8]} 12. Bd1 {[%clk 0:02:27.4]} 12... Qa5 {[%clk 0:02:16.5]}
13. Bc2 {[%clk 0:02:26.8]} 13... Bxc2 {[%clk 0:02:14.6]} 14. Qxc2 {[%clk
0:02:27.7]} 14... b5 {[%clk 0:02:14.5]} 15. e4 {[%clk 0:02:27.1]} 15... Rfe8
{[%clk 0:02:03.5]} 16. a3 {[%clk 0:02:21.9]} 16... Qb6 {[%clk 0:01:53.2]} 17.
Re2 {[%clk 0:02:16.9]} 17... a5 {[%clk 0:01:52.8]} 18. Ne5 {[%clk 0:02:13.2]}
18... Nxe5 {[%clk 0:01:28.1]} 19. Bxe5 {[%clk 0:02:14.1]} 19... b4 {[%clk
0:01:24.8]} 20. axb4 {[%clk 0:02:09.3]} 20... axb4 {[%clk 0:01:24.9]} 21. Rxa8
{[%clk 0:02:09.9]} 21... Rxa8 {[%clk 0:01:23]} 22. Bxf6 {[%clk 0:02:09.6]} 22...
Ra1+ {[%clk 0:01:15.8]} 23. Nf1 {[%clk 0:02:08.7]} 23... b3 {[%clk 0:01:02.3]}
24. Qd2 {[%clk 0:02:08.6]} 24... Bxf6 {[%clk 0:01:02.1]} 25. exd5 {[%clk
0:02:08.8]} 25... exd5 {[%clk 0:01:00.3]} 26. Re8+ {[%clk 0:02:08.6]} 26... Kh7
{[%clk 0:01:00.3]} 27. Qf4 {[%clk 0:02:08.9]} 27... Qc6 {[%clk 0:00:44.6]} 28.
Re2 {[%clk 0:02:07.1]} 28... Qd7 {[%clk 0:00:42.1]} 29. g4 {[%clk 0:02:03.3]}
29... Bg5 {[%clk 0:00:40.9]} 30. Qf3 {[%clk 0:02:03.5]} 30... g6 {[%clk
0:00:29]} 31. Kg2 {[%clk 0:02:02.1]} 31... Kg7 {[%clk 0:00:28]} 32. Re5 {[%clk
0:01:53.7]} 32... Rb1 {[%clk 0:00:20.6]} 33. Rxd5 {[%clk 0:01:50.4]} 33... Qc6
{[%clk 0:00:21.1]} 34. Qe4 {[%clk 0:00:49.8]} 34... Rxb2 {[%clk 0:00:18.6]} 35.
Kg3 {[%clk 0:00:48.9]} 35... Bf6 {[%clk 0:00:07.3]} 36. Ne3 {[%clk 0:00:45.8]}
36... Qc7+ {[%clk 0:00:07.1]} 37. f4 {[%clk 0:00:45.5]} 37... g5 {[%clk
0:00:06.2]} 38. Nf5+ {[%clk 0:00:45.4]} 38... Kg8 {[%clk 0:00:04.6]} 39. Rd6
{[%clk 0:00:36.6]} 39... gxf4+ {[%clk 0:00:03.6]} 40. Qxf4 {[%clk 0:00:35.4]}
40... Bg5 {[%clk 0:00:03.9]} 41. Rg6+ {[%clk 0:00:30.9]} 41... fxg6 {[%clk
0:00:04.3]} 42. Qxc7 {[%clk 0:00:30.9]} 42... gxf5 {[%clk 0:00:05]} 43. gxf5
{[%clk 0:00:29.6]} 43... Rb1 {[%clk 0:00:03.9]} 44. Qxc4+ {[%clk 0:00:29.8]}
44... Kg7 {[%clk 0:00:03.5]} 45. Qc7+ {[%clk 0:00:30]} 45... Kf8 {[%clk
0:00:03.4]} 46. Qd6+ {[%clk 0:00:28.9]} 46... Kg8 {[%clk 0:00:03.3]} 47. Qe6+
{[%clk 0:00:28.8]} 47... Kg7 {[%clk 0:00:04]} 48. Qg6+ {[%clk 0:00:28.5]} 48...
Kf8 {[%clk 0:00:04.2]} 49. f6 {[%clk 0:00:29.4]} 49... Rg1+ {[%clk 0:00:03.5]}
50. Kf2 {[%clk 0:00:29.1]} 50... Be3+ {[%clk 0:00:03.3]} 51. Kxe3 {[%clk
0:00:18.7]} 51... Rxg6 {[%clk 0:00:04.2]} 52. Kd2 {[%clk 0:00:19.6]} 52... Rxf6
{[%clk 0:00:04.5]} 53. c4 {[%clk 0:00:19.5]} 53... Rf3 {[%clk 0:00:05.1]} 54. d5
{[%clk 0:00:19.5]} 54... Rxh3 {[%clk 0:00:05.5]} 55. c5 {[%clk 0:00:19.8]} 55...
Ke7 {[%clk 0:00:06.2]} 56. d6+ {[%clk 0:00:19.6]} 56... Kd7 {[%clk 0:00:06.9]}
57. Kc1 {[%clk 0:00:20.5]} 57... Kc6 {[%clk 0:00:07]} 58. Kb2 {[%clk 0:00:21.4]}
58... Rd3 {[%clk 0:00:07.3]} 59. d7 {[%clk 0:00:21.9]} 59... Kxd7 {[%clk
0:00:06.8]} 60. c6+ {[%clk 0:00:21.9]} 60... Kxc6 {[%clk 0:00:07.5]} 61. Ka3
{[%clk 0:00:22.7]} 61... Kc5 {[%clk 0:00:07.8]} 62. Kb2 {[%clk 0:00:23.6]} 62...
Kb4 {[%clk 0:00:08.3]} 63. Ka1 {[%clk 0:00:23.9]} 63... Kc3 {[%clk 0:00:08.7]}
64. Kb1 {[%clk 0:00:23.9]} 64... Rd1# {[%clk 0:00:09.6]} 0-1